fUSD/lending_fUSD_20250510
["ID","MTS","AMOUNT","RATE_DAILY","PERIOD"]
[360558533,1746889838264,-179.18151417,0.00019178,2]
[360558534,1746889838288,-58.27848583,0.00019178,2]
[360558535,1746889838298,-527.71,0.00019178,2]
[360558536,1746889838307,-47.06451417,0.00019178,2]
[360558537,1746889838320,-307.09688192,0.00019178,2]
[360558538,1746889838336,-45.83860391,0.00019178,2]
[360558539,1746889838347,-400.0,0.00019178,2]
[360558540,1746889838357,-563.82,0.00019178,2]
[360558541,1746889838366,-403.95937178,0.00019178,2]
[360558542,1746889838376,-400.0,0.00019178,2]
[360558543,1746889838386,-279.29278531,0.00019178,2]
[360558544,1746889838398,-120.70721469,0.00019178,2]
[360558545,1746889838408,-400.0,0.00019178,2]
[360558546,1746889838417,-400.0,0.00019178,2]
[360558547,1746889838427,-400.0,0.00019178,2]
[360558548,1746889838436,-400.0,0.00019178,2]
[360558549,1746889838447,-400.0,0.00019178,2]
[360558550,1746889838466,-518.55,0.00019178,2]
[360558551,1746889838475,-400.0,0.00019178,2]
[360558552,1746889838485,-400.0,0.00019178,2]
[360558553,1746889838494,-400.0,0.00019178,2]
[360558554,1746889838504,-400.0,0.00019178,2]
[360558555,1746889838514,-400.0,0.00019178,2]
[360558556,1746889838523,-400.0,0.00019178,2]
[360558557,1746889838533,-737.22,0.00019178,2]
[360558558,1746889838542,-448.94,0.00019178,2]
[360558559,1746889838552,-2411.04,0.00019178,2]
[360558560,1746889838562,-237.20515329,0.00019178,2]
[360558563,1746889840259,-1850.3401,0.00019078,2]
[360558564,1746889840269,-362.79484671,0.00019178,2]
[360558565,1746889840279,-400.0,0.00019178,2]
[360558567,1746889840290,-400.0,0.00019178,2]
[360558568,1746889840300,-400.0,0.00019178,2]
[360558569,1746889840310,-304.38052627,0.00019178,2]
[360558570,1746889840319,-2374.88,0.00019178,2]
[360558571,1746889840329,-400.0,0.00019178,2]
[360558572,1746889840338,-400.0,0.00019178,2]
[360558573,1746889840348,-400.0,0.00019178,2]
[360558574,1746889840357,-225.01772523,0.00019178,2]
[360558575,1746889840373,-174.98227477,0.00019178,2]
[360558576,1746889840383,-400.0,0.00019178,2]
[360558577,1746889840392,-2163.52,0.00019178,2]
[360558578,1746889840401,-470.01460195,0.00019178,2]
[360558579,1746889840411,-603.77,0.00019178,2]
[360558580,1746889840420,-400.0,0.00019178,2]
[360558581,1746889840430,-5.25327794,0.00019178,2]
[360558582,1746889840443,-1891.83830736,0.00019178,2]
[360558583,1746889840457,-1235.3084147,0.00019178,2]
[360558584,1746889840467,-504.7826886,0.00019178,2]
[360558585,1746889840482,-1199.30233872,0.00019178,2]
[360558586,1746889840496,-468.67334615,0.00019178,2]
[360558588,1746889840508,-1535.70853241,0.00019178,2]
[360558590,1746889840519,-482.56423203,0.00019178,2]
[360558592,1746889840531,-3000.0,0.00019178,2]
[360558594,1746889840557,-9770.25091567,0.00019178,2]
[360558595,1746889840568,-89727.30794642,0.00019178,2]
[360558596,1746889840577,-400.0,0.00019178,2]
[360558597,1746889840586,-2542.94,0.00019178,2]
[360558598,1746889840596,-2808.08,0.00019178,2]
[360558599,1746889840605,-400.0,0.00019178,2]
[360558600,1746889840614,-400.0,0.00019178,2]
[360558601,1746889840624,-22111.62,0.00019178,2]
[360558602,1746889840633,-286.43957577,0.00019178,2]
[360558603,1746889840642,-400.0,0.00019178,2]
[360558604,1746889840651,-450.0,0.00019178,2]
[360558605,1746889840660,-400.0,0.00019178,2]
[360558606,1746889840669,-400.0,0.00019178,2]
[360558607,1746889840678,-27641.65,0.00019178,2]
[360558608,1746889840688,-400.0,0.00019178,2]
[360558609,1746889840699,-8920.78,0.00019178,2]
[360558610,1746889840709,-400.0,0.00019178,2]
[360558611,1746889840720,-400.0,0.00019178,2]
[360558612,1746889840729,-3015.87,0.00019178,2]
[360558613,1746889840738,-3500.22,0.00019178,2]
[360558614,1746889840747,-452.27773039,0.00019178,2]
[360558615,1746889840756,-400.0,0.00019178,2]
[360558616,1746889840766,-400.0,0.00019178,2]
[360558617,1746889840775,-412.49567018,0.00019178,2]
[360558618,1746889840785,-400.0,0.00019178,2]
[360558619,1746889840794,-1000.0,0.00019178,2]
[360558620,1746889840803,-400.0,0.00019178,2]
[360558621,1746889840813,-14549.37,0.00019178,2]
[360558622,1746889840824,-400.0,0.00019178,2]
[360558623,1746889840832,-400.0,0.00019178,2]
[360558624,1746889840841,-400.0,0.00019178,2]
[360558625,1746889840850,-400.0,0.00019178,2]
[360558626,1746889840860,-400.0,0.00019178,2]
[360558627,1746889840869,-400.0,0.00019178,2]
[360558628,1746889840878,-400.0,0.00019178,2]
[360558629,1746889840887,-288.89504462,0.00019178,2]
[360558630,1746889840896,-190.83350275,0.00019178,2]
[360558631,1746889840905,-400.0,0.00019178,2]
[360558632,1746889840914,-500.0,0.00019178,2]
[360558634,1746889840924,-500.0,0.00019178,2]
[360558635,1746889840942,-500.0,0.00019178,2]
[360558636,1746889840952,-500.0,0.00019178,2]
[360558637,1746889840961,-500.0,0.00019178,2]
[360558638,1746889840972,-500.0,0.00019178,2]
[360558639,1746889840981,-500.0,0.00019178,2]
[360558640,1746889840992,-500.0,0.00019178,2]
[360558641,1746889841001,-500.0,0.00019178,2]
[360558642,1746889841011,-500.0,0.00019178,2]
[360558643,1746889841021,-500.0,0.00019178,2]
[360558644,1746889841030,-500.0,0.00019178,2]
[360558645,1746889841041,-500.0,0.00019178,2]
[360558646,1746889841051,-500.0,0.00019178,2]
[360558647,1746889841061,-500.0,0.00019178,2]
[360558648,1746889841071,-343.11186998,0.00019178,2]
[360558649,1746889841080,-404.12146173,0.00019178,2]
[360558650,1746889841089,-400.0,0.00019178,2]
[360558651,1746889841099,-400.0,0.00019178,2]
[360558652,1746889841108,-400.0,0.00019178,2]
[360558653,1746889841117,-400.0,0.00019178,2]
[360558654,1746889841126,-400.0,0.00019178,2]
[360558655,1746889841136,-4877.78,0.00019178,2]
[360558656,1746889841145,-400.0,0.00019178,2]
[360558657,1746889841155,-400.0,0.00019178,2]
[360558658,1746889841164,-513.66,0.00019178,2]
[360558659,1746889841174,-3141.6,0.00019178,2]
[360558660,1746889841183,-400.0,0.00019178,2]
[360558661,1746889841192,-400.0,0.00019178,2]
[360558662,1746889841203,-400.0,0.00019178,2]
[360558663,1746889841214,-400.0,0.00019178,2]
[360558664,1746889841224,-2034.88,0.00019178,2]
[360558665,1746889841233,-222.08127286,0.00019178,2]
[360558666,1746889841242,-2502.2,0.00019178,2]
[360558667,1746889841252,-400.0,0.00019178,2]
[360558668,1746889841262,-400.0,0.00019178,2]
[360558669,1746889841272,-2914.56,0.00019178,2]
[360558670,1746889841282,-400.0,0.00019178,2]
[360558671,1746889841297,-400.0,0.00019178,2]
[360558672,1746889841308,-400.0,0.00019178,2]
[360558673,1746889841318,-411.06,0.00019178,2]
[360558674,1746889841327,-2992.03,0.00019178,2]
[360558675,1746889841338,-400.0,0.00019178,2]
[360558676,1746889841347,-2178.89,0.00019178,2]
[360558677,1746889841357,-532.38,0.00019178,2]
[360558678,1746889841367,-5126.97,0.00019178,2]
[360558679,1746889841376,-400.0,0.00019178,2]
[360558680,1746889841386,-400.0,0.00019178,2]
[360558681,1746889841395,-400.0,0.00019178,2]
[360558682,1746889841404,-400.0,0.00019178,2]
[360558683,1746889841414,-1714.03,0.00019178,2]
[360558684,1746889841424,-400.0,0.00019178,2]
[360558685,1746889841434,-401.53006966,0.00019178,2]
[360558686,1746889841443,-400.0,0.00019178,2]
[360558687,1746889841453,-502.67314111,0.00019178,2]
[360558688,1746889841462,-373.51955527,0.00019178,2]
[360558689,1746889841473,-434.97,0.00019178,2]
[360558690,1746889841482,-1864.09,0.00019178,2]
[360558691,1746889841492,-1996.27,0.00019178,2]
[360558692,1746889841502,-400.0,0.00019178,2]
[360558693,1746889841511,-400.0,0.00019178,2]
[360558694,1746889841521,-1261.88,0.00019178,2]
[360558695,1746889841677,-423.36,0.00019178,2]
[360558696,1746889841687,-400.0,0.00019178,2]
[360558697,1746889841697,-707.92,0.00019178,2]
[360558698,1746889841707,-400.0,0.00019178,2]
[360558699,1746889841717,-7172.89,0.00019178,2]
[360558700,1746889841727,-450.0,0.00019178,2]
[360558701,1746889841736,-400.0,0.00019178,2]
[360558702,1746889841746,-400.0,0.00019178,2]
[360558703,1746889841756,-400.0,0.00019178,2]
[360558704,1746889841766,-2944.67,0.00019178,2]
[360558705,1746889841775,-202.93,0.00019178,2]
[360558706,1746889841784,-404.98,0.00019178,2]
[360558707,1746889841794,-4217.15,0.00019178,2]
[360558708,1746889841803,-401.05220464,0.00019178,2]
[360558709,1746889841812,-183.83104009,0.00019178,2]
[360558710,1746889841821,-1500.0,0.00019178,2]
[360558711,1746889841832,-173.26,0.00019178,2]
[360558712,1746889841842,-1966.22890001,0.0001926,2]
[360558713,1746889841851,-500.0,0.00019315,2]
[360558714,1746889841860,-500.0,0.00019342,2]
[360558715,1746889841870,-1966.22890001,0.0001935,2]
[360558716,1746889841879,-559.17710427,0.00019386,2]
[360558717,1746889841889,-1966.22890001,0.00019441,2]
[360558718,1746889841899,-181.64149338,0.00019444,2]
[360558719,1746889841908,-151.0,0.00019466,2]
[360558720,1746889841918,-151.0,0.00019467,2]
[360558721,1746889841928,-151.0,0.00019469,2]
[360558722,1746889841937,-151.0,0.0001947,2]
[360558723,1746889841947,-500.0,0.00019479,2]
[360558724,1746889841956,-8932.0,0.000195,2]
[360558725,1746889841966,-1037.79780346,0.00019532,2]
[360558726,1746889841976,-1966.22890001,0.00019532,2]
[360558727,1746889841985,-1714.03,0.00019543,2]
[360558728,1746889841995,-503.56437261,0.00019544,2]
[360558729,1746889842004,-779.34,0.00019544,2]
[360558730,1746889842013,-400.0,0.00019544,2]
[360558731,1746889842023,-400.0,0.00019544,2]
[360558732,1746889842033,-400.0,0.00019544,2]
[360558733,1746889842043,-400.0,0.00019544,2]
[360558734,1746889842053,-2218.39,0.00019544,2]
[360558735,1746889842063,-400.0,0.00019544,2]
[360558736,1746889842072,-400.0,0.00019544,2]
[360558737,1746889842081,-535.68,0.00019544,2]
[360558738,1746889842090,-1973.9,0.00019544,2]
[360558739,1746889842100,-2374.88,0.00019544,2]
[360558740,1746889842109,-400.0,0.00019544,2]
[360558741,1746889842119,-758.22,0.00019544,2]
[360558742,1746889842129,-400.0,0.00019544,2]
[360558743,1746889842139,-2163.52,0.00019544,2]
[360558744,1746889842150,-106688.59,0.00019544,2]
[360558745,1746889842159,-2542.94,0.00019544,2]
[360558746,1746889842169,-2808.08,0.00019544,2]
[360558747,1746889842179,-206.49,0.00019544,2]
[360558748,1746889842188,-8920.78,0.00019544,2]
[360558749,1746889842198,-3015.87,0.00019544,2]
[360558750,1746889842209,-1000.0,0.00019544,2]
[360558751,1746889842221,-400.0,0.00019544,2]
[360558752,1746889842231,-400.0,0.00019544,2]
[360558753,1746889842240,-400.0,0.00019544,2]
[360558754,1746889842250,-400.0,0.00019544,2]
[360558755,1746889842260,-4877.78,0.00019544,2]
[360558757,1746889842269,-3141.6,0.00019544,2]
[360558758,1746889842279,-2034.88,0.00019544,2]
[360558759,1746889842290,-2502.2,0.00019544,2]
[360558760,1746889842300,-400.0,0.00019544,2]
[360558761,1746889842318,-2914.56,0.00019544,2]
[360558762,1746889842330,-2992.03,0.00019544,2]
[360558763,1746889842340,-2178.89,0.00019544,2]
[360558764,1746889842350,-5126.97,0.00019544,2]
[360558765,1746889842360,-400.0,0.00019544,2]
[360558766,1746889842370,-400.0,0.00019544,2]
[360558767,1746889842380,-434.97,0.00019544,2]
[360558768,1746889842391,-1864.09,0.00019544,2]
[360558769,1746889842402,-1996.27,0.00019544,2]
[360558770,1746889842412,-400.0,0.00019544,2]
[360558771,1746889842422,-1261.88,0.00019544,2]
[360558772,1746889842433,-423.36,0.00019544,2]
[360558773,1746889842443,-707.92,0.00019544,2]
[360558774,1746889842454,-276.49,0.00019544,2]
[360558776,1746889842464,-7172.89,0.00019544,2]
[360558778,1746889842473,-400.0,0.00019544,2]
[360558779,1746889842484,-400.0,0.00019544,2]
[360558780,1746889842494,-2944.67,0.00019544,2]
[360558781,1746889842503,-404.98,0.00019544,2]
[360558782,1746889842513,-4217.15,0.00019544,2]
[360558783,1746889842522,-636076.53312752,0.00019545,2]
[360558784,1746889842543,-8524.98486121,0.00019545,2]
[360558785,1746889842555,-487.52557497,0.00019545,2]
[360558786,1746889842771,-370.44970304,0.00019545,2]
[360558787,1746889842796,-121258.17194976,0.00019545,2]
[360558788,1746889842806,-78485.87384184,0.00019545,2]
[360558789,1746889843032,-704.49718472,0.00019545,2]
[360558790,1746889843044,-5304.02095429,0.00019545,2]
[360558791,1746889843055,-5668.23791915,0.00019545,2]
[360558792,1746889843065,-153.78871186,0.00019545,2]
[360558793,1746889843075,-500.0,0.00019573,2]
[360558794,1746889843084,-500.0,0.00019573,2]
[360558795,1746889843094,-300.0,0.00019573,2]
[360558796,1746889843103,-500.0,0.00019573,2]
[360558797,1746889843113,-500.0,0.00019573,2]
[360558798,1746889843128,-500.0,0.00019573,2]
[360558799,1746889843147,-500.0,0.00019573,2]
[360558800,1746889843161,-300.0,0.00019583,2]
[360558801,1746889843173,-156.36152827,0.0001959,2]
[360558802,1746889843185,-226.11148496,0.00019599,2]
[360558803,1746889843199,-30000.0,0.000196,2]
[360558804,1746889843215,-1037.79780346,0.00019623,2]
[360558805,1746889843229,-1966.22890001,0.00019623,2]
[360558806,1746889843243,-262.81,0.00019623,2]
[360558807,1746889843257,-344.97,0.00019623,2]
[360558808,1746889843271,-445.38,0.00019623,2]
[360558809,1746889843284,-306.97059213,0.00019623,2]
[360558810,1746889843298,-409.47445171,0.00019623,2]
[360558811,1746889843309,-275.97136881,0.00019623,2]
[360558812,1746889843320,-2570.85,0.00019623,2]
[360558813,1746889843334,-1730.63,0.00019623,2]
[360558814,1746889843347,-505.41,0.00019623,2]
[360558815,1746889843360,-219.17,0.00019623,2]
[360558816,1746889843373,-400.0,0.00019623,2]
[360558817,1746889843386,-298.06,0.00019623,2]
[360558818,1746889843400,-400.0,0.00019623,2]
[360558819,1746889843413,-400.0,0.00019623,2]
[360558820,1746889843426,-400.0,0.00019623,2]
[360558821,1746889843440,-400.0,0.00019623,2]
[360558822,1746889843453,-737.22,0.00019623,2]
[360558823,1746889843466,-448.94,0.00019623,2]
[360558824,1746889843477,-400.0,0.00019623,2]
[360558825,1746889843490,-400.0,0.00019623,2]
[360558826,1746889843503,-603.77,0.00019623,2]
[360558827,1746889843516,-400.0,0.00019623,2]
[360558828,1746889843528,-400.0,0.00019623,2]
[360558829,1746889843543,-400.0,0.00019623,2]
[360558830,1746889843555,-400.0,0.00019623,2]
[360558831,1746889843568,-400.0,0.00019623,2]
[360558832,1746889843580,-400.0,0.00019623,2]
[360558833,1746889843591,-400.0,0.00019623,2]
[360558834,1746889843602,-400.0,0.00019623,2]
[360558835,1746889843613,-400.0,0.00019623,2]
[360558836,1746889843626,-400.0,0.00019623,2]
[360558837,1746889843640,-374.44454075,0.00019623,2]
[360558838,1746889843650,-400.0,0.00019623,2]
[360558839,1746889843660,-400.0,0.00019623,2]
[360558840,1746889843670,-400.0,0.00019623,2]
[360558841,1746889843681,-175.75,0.00019623,2]
[360558842,1746889843694,-532.38,0.00019623,2]
[360558843,1746889843708,-400.0,0.00019623,2]
[360558844,1746889843721,-1714.03,0.00019642,2]
[360558845,1746889843732,-400.0,0.00019643,2]
[360558846,1746889843743,-400.0,0.00019643,2]
[360558847,1746889843753,-400.0,0.00019643,2]
[360558848,1746889843765,-400.0,0.00019643,2]
[360558849,1746889843779,-3015.87,0.00019643,2]
[360558850,1746889843791,-3015.87,0.00019643,2]
[360558851,1746889843803,-3015.87,0.00019643,2]
[360558852,1746889843814,-3015.87,0.00019643,2]
[360558853,1746889843826,-2502.2,0.00019643,2]
[360558854,1746889843837,-2502.2,0.00019643,2]
[360558855,1746889843849,-2502.2,0.00019643,2]
[360558856,1746889843860,-2502.2,0.00019643,2]
[360558857,1746889843872,-2178.89,0.00019643,2]
[360558858,1746889843883,-2178.89,0.00019643,2]
[360558859,1746889843895,-2178.89,0.00019643,2]
[360558860,1746889843906,-2178.89,0.00019643,2]
[360558861,1746889843918,-2178.89,0.00019643,2]
[360558862,1746889843929,-1714.03,0.00019643,2]
[360558863,1746889843940,-1714.03,0.00019643,2]
[360558864,1746889843952,-1714.03,0.00019643,2]
[360558865,1746889843963,-1714.03,0.00019643,2]
[360558866,1746889843975,-1714.03,0.00019643,2]
[360558867,1746889843987,-1714.03,0.00019643,2]
[360558868,1746889843998,-1714.03,0.00019643,2]
[360558869,1746889844010,-1996.27,0.00019643,2]
[360558870,1746889844021,-1996.27,0.00019643,2]
[360558871,1746889844033,-1996.27,0.00019643,2]
[360558872,1746889844045,-1996.27,0.00019643,2]
[360558873,1746889844057,-1261.88,0.00019643,2]
[360558874,1746889844068,-1261.88,0.00019643,2]
[360558875,1746889844080,-1261.88,0.00019643,2]
[360558876,1746889844091,-1261.88,0.00019643,2]
[360558877,1746889844103,-1261.88,0.00019643,2]
[360558878,1746889844114,-2944.67,0.00019643,2]
[360558879,1746889844126,-2944.67,0.00019643,2]
[360558880,1746889844137,-2944.67,0.00019643,2]
[360558881,1746889844148,-2944.67,0.00019643,2]
[360558882,1746889844160,-612.0,0.00019643,2]
[360558883,1746889844172,-500.0,0.00019644,2]
[360558884,1746889844184,-400.0,0.00019644,2]
[360558885,1746889844195,-779.34,0.00019644,2]
[360558886,1746889844208,-779.34,0.00019644,2]
[360558887,1746889844220,-483.71533399,0.00019644,2]
[360558888,1746889844237,-295.62466601,0.00019644,2]
[360558889,1746889844249,-779.34,0.00019644,2]
[360558890,1746889844260,-779.34,0.00019644,2]
[360558891,1746889844272,-172.03094398,0.00019644,2]
[360558892,1746889844286,-2629.93905602,0.00019644,2]
[360558893,1746889844298,-230.83,0.00019644,2]
[360558894,1746889844310,-400.0,0.00019644,2]
[360558895,1746889844321,-400.0,0.00019644,2]
[360558896,1746889844332,-400.0,0.00019644,2]
[360558897,1746889844343,-201.86,0.00019644,2]
[360558898,1746889844354,-400.0,0.00019644,2]
[360558899,1746889844365,-400.0,0.00019644,2]
[360558900,1746889844377,-2570.85,0.00019644,2]
[360558901,1746889844389,-117.49041198,0.00019644,2]
[360558902,1746889844904,-282.50958802,0.00019644,2]
[360558903,1746889844918,-1349.13858782,0.00019644,2]
[360558904,1746889844931,-381.49141218,0.00019644,2]
[360558905,1746889844940,-172.59858782,0.00019644,2]
[360558906,1746889845564,-832.55,0.00019178,2]
[360558907,1746889845574,-832.55,0.00019543,2]
[360558908,1746889845583,-832.55,0.00019642,2]
[360558909,1746889845592,-188.76,0.00019643,2]
[360558910,1746889845681,-643.79,0.00019643,2]
[360558911,1746889845691,-832.55,0.00019643,2]
[360558912,1746889845700,-227.40141218,0.00019644,2]
[360558913,1746889845710,-490.86,0.00019644,2]
[360558914,1746889845720,-400.0,0.00019644,2]
[360558915,1746889845729,-400.0,0.00019644,2]
[360558916,1746889845739,-400.0,0.00019644,2]
[360558917,1746889845748,-400.0,0.00019644,2]
[360558918,1746889845757,-2218.39,0.00019644,2]
[360558919,1746889845767,-2218.39,0.00019644,2]
[360558920,1746889845776,-2218.39,0.00019644,2]
[360558921,1746889845785,-2218.39,0.00019644,2]
[360558922,1746889845794,-2218.39,0.00019644,2]
[360558923,1746889845803,-400.0,0.00019644,2]
[360558924,1746889845812,-400.0,0.00019644,2]
[360558925,1746889845822,-542.02,0.00019644,2]
[360558926,1746889845831,-400.0,0.00019644,2]
[360558927,1746889845841,-400.0,0.00019644,2]
[360558928,1746889845850,-400.0,0.00019644,2]
[360558929,1746889845859,-400.0,0.00019644,2]
[360558930,1746889845868,-400.0,0.00019644,2]
[360558931,1746889845877,-400.0,0.00019644,2]
[360558932,1746889845886,-400.0,0.00019644,2]
[360558933,1746889845896,-527.71,0.00019644,2]
[360558934,1746889845905,-400.0,0.00019644,2]
[360558935,1746889845914,-400.0,0.00019644,2]
[360558936,1746889845923,-563.82,0.00019644,2]
[360558937,1746889845932,-400.0,0.00019644,2]
[360558938,1746889845941,-400.0,0.00019644,2]
[360558939,1746889845950,-400.0,0.00019644,2]
[360558940,1746889845959,-400.0,0.00019644,2]
[360558941,1746889845970,-400.0,0.00019644,2]
[360558942,1746889845980,-400.0,0.00019644,2]
[360558943,1746889845990,-400.0,0.00019644,2]
[360558944,1746889845999,-400.0,0.00019644,2]
[360558945,1746889846008,-518.55,0.00019644,2]
[360558946,1746889846018,-400.0,0.00019644,2]
[360558947,1746889846027,-400.0,0.00019644,2]
[360558948,1746889846037,-400.0,0.00019644,2]
[360558949,1746889846046,-400.0,0.00019644,2]
[360558950,1746889846056,-400.0,0.00019644,2]
[360558951,1746889846065,-737.22,0.00019644,2]
[360558952,1746889846075,-448.94,0.00019644,2]
[360558953,1746889846085,-2411.04,0.00019644,2]
[360558954,1746889846095,-443.09,0.00019644,2]
[360558956,1746889846106,-400.0,0.00019644,2]
[360558957,1746889846116,-1973.9,0.00019644,2]
[360558958,1746889846126,-400.0,0.00019644,2]
[360558959,1746889846135,-758.22,0.00019644,2]
[360558960,1746889846145,-400.0,0.00019644,2]
[360558961,1746889846154,-400.0,0.00019644,2]
[360558962,1746889846164,-498.71799587,0.00019644,2]
[360558963,1746889846173,-400.0,0.00019644,2]
[360558964,1746889846183,-400.0,0.00019644,2]
[360558965,1746889846192,-2163.52,0.00019644,2]
[360558966,1746889846203,-2163.52,0.00019644,2]
[360558967,1746889846212,-2163.52,0.00019644,2]
[360558968,1746889846224,-2163.52,0.00019644,2]
[360558969,1746889846233,-2163.52,0.00019644,2]
[360558970,1746889846243,-603.77,0.00019644,2]
[360558971,1746889846253,-400.0,0.00019644,2]
[360558972,1746889846262,-3132.4,0.00019644,2]
[360558973,1746889846273,-3132.4,0.00019644,2]
[360558974,1746889846283,-53476.71527417,0.00019644,2]
[360558975,1746889846297,-53211.87472583,0.00019644,2]
[360558976,1746889846306,-46908.00179602,0.00019644,2]
[360558977,1746889846318,-19888.0511999,0.00019644,2]
[360558978,1746889846329,-997.48,0.00019644,2]
[360558979,1746889846346,-832.55,0.00019643,2]
[360558980,1746889846355,-3183.2165605,0.00019644,2]
[360558987,1746889904623,-218.71841241,0.000187,2]
[360558992,1746889926276,-152.0,0.00018689,2]
[360559001,1746890002840,500.0,0.00030039,120]
[360559007,1746890038578,233.4,0.00030137,120]
[360559019,1746890129247,500.0,0.00016438,2]
[360559020,1746890129604,500.0,0.00016438,2]
[360559021,1746890129983,152.29118431,0.00016438,2]
[360559022,1746890130012,69.15639317,0.00016438,2]
[360559024,1746890207653,-271.89,0.00018249,2]
[360559025,1746890207681,-200.0,0.00018366,2]
[360559026,1746890207708,-1405.63,0.00018417,2]
[360559027,1746890207736,-200.0,0.00018551,2]
[360559028,1746890207763,-190.97,0.00018686,2]
[360559029,1746890207790,-5839.64,0.00018689,2]
[360559030,1746890207819,-1200.0,0.00018694,2]
[360559031,1746890207848,-200.0,0.00018695,2]
[360559032,1746890207875,-300.0,0.00018699,2]
[360559033,1746890207903,-23681.28158759,0.000187,2]
[360559034,1746890207932,-1679.49715869,0.00018978,2]
[360559035,1746890207960,-621.9567,0.00018978,2]
[360559036,1746890207987,-1441.5929,0.00018978,2]
[360559037,1746890208014,-172.32,0.00019068,3]
[360559038,1746890208051,-2869.64676409,0.00019078,2]
[360559039,1746890208079,-181.64149338,0.00019078,2]
[360559040,1746890208107,-177.92681398,0.00019078,2]
[360559041,1746890208134,-12244.7342,0.00019078,2]
[360559042,1746890208162,-153924.594,0.00019078,2]
[360559043,1746890208189,-2500.0,0.00019078,2]
[360559044,1746890208216,-334.5599,0.00019078,2]
[360559045,1746890208244,-404.3911,0.00019078,2]
[360559046,1746890208273,-1679.49715869,0.0001908,2]
[360559047,1746890208303,-2869.64676409,0.00019169,2]
[360559048,1746890208333,-1023.0,0.0001917,2]
[360559049,1746890208361,-500.0,0.00019173,2]
[360559050,1746890208388,-400.0,0.00019178,2]
[360559051,1746890208418,-400.0,0.00019178,2]
[360559052,1746890208447,-400.0,0.00019178,2]
[360559053,1746890208474,-2568.47,0.00019178,2]
[360559054,1746890208503,-400.0,0.00019178,2]
[360559055,1746890208531,-400.0,0.00019178,2]
[360559056,1746890208559,-400.0,0.00019178,2]
[360559057,1746890208588,-400.0,0.00019178,2]
[360559058,1746890208616,-400.0,0.00019178,2]
[360559059,1746890208643,-400.0,0.00019178,2]
[360559060,1746890208671,-400.0,0.00019178,2]
[360559061,1746890208699,-400.0,0.00019178,2]
[360559062,1746890208727,-400.0,0.00019178,2]
[360559063,1746890208754,-400.0,0.00019178,2]
[360559064,1746890208780,-400.0,0.00019178,2]
[360559065,1746890208809,-400.0,0.00019178,2]
[360559066,1746890208836,-400.0,0.00019178,2]
[360559067,1746890208864,-400.0,0.00019178,2]
[360559068,1746890208892,-400.0,0.00019178,2]
[360559069,1746890208920,-400.0,0.00019178,2]
[360559070,1746890208949,-400.0,0.00019178,2]
[360559071,1746890208979,-400.0,0.00019178,2]
[360559072,1746890209008,-400.0,0.00019178,2]
[360559073,1746890209038,-2282.83,0.00019178,2]
[360559074,1746890209069,-414.45,0.00019178,2]
[360559075,1746890209096,-400.0,0.00019178,2]
[360559076,1746890209126,-400.0,0.00019178,2]
[360559077,1746890209154,-400.0,0.00019178,2]
[360559078,1746890209182,-402.77708237,0.00019178,2]
[360559079,1746890209210,-548.07885874,0.00019178,2]